bitfinex/quotes_ETHUSD_20251214
["timestamp","ask_amount","ask_price","bid_price","bid_amount"]
[1765727347440,6.58102583,3085.7,3084.7,0.4533]
[1765727347738,4.78891932,3085.2,3084.4,0.4775]
[1765727348049,1.05247529,3084.8,3084.2,0.4775]
[1765727348251,0.513,3084.7,3084.1,0.1811]
[1765727348550,0.001,3084.3,3084.1,0.6586]
[1765727348837,0.001,3084.3,3084.1,0.1811]
[1765727348838,0.513,3084.2,3084.1,0.1811]
[1765727349342,0.513,3084.2,3084.1,0.6344]
[1765727349911,0.513,3084.2,3084.1,0.4553]
[1765727350632,3.75533188,3084.2,3084.1,0.4553]
[1765727351141,4.46427982,3084.2,3084.1,0.4553]
[1765727351337,4.46427982,3084.2,3084.1,0.002]
[1765727351537,4.46427982,3084.2,3084.1,0.4553]
[1765727351838,3.95127982,3084.2,3084.1,0.4553]
[1765727352015,3.75533188,3084.2,3084.1,1.1119]
[1765727352813,0.001,3084.3,3084.1,1.1119]
[1765727353018,0.001,3084.3,3084.2,0.9308]
[1765727353219,0.514,3084.3,3084.2,0.9308]
[1765727353911,0.001,3084.3,3084.2,0.9308]
[1765727354117,3.75622676,3084.3,3084.2,0.9308]
[1765727354317,0.514,3084.3,3084.2,0.9308]
[1765727355314,3.75622676,3084.3,3084.2,0.4533]
[1765727355536,3.75622676,3084.3,3084.2,0.9308]
[1765727355742,3.75622676,3084.3,3084.2,0.4533]
[1765727359143,5.47908449,3084.3,3084.1,0.002]
[1765727359449,4.51048449,3084.3,3084.2,0.9308]
[1765727359644,3.75622676,3084.3,3084.2,0.9308]
[1765727361130,3.24322676,3084.3,3084.2,0.9308]
[1765727361331,3.75622676,3084.3,3084.2,0.9308]
[1765727361924,3.24322676,3084.3,3084.2,0.9308]
[1765727362248,3.75622676,3084.3,3084.2,0.4533]
[1765727363526,3.75622676,3084.3,3084.2,0.9308]
[1765727363746,3.75622676,3084.3,3084.2,0.4533]
[1765727364053,4.51058447,3084.3,3084.1,0.002]
[1765727364234,0.09102583,3084.2,3084.1,0.002]
[1765727364639,0.09102583,3084.2,3084.1,0.4553]
[1765727365042,0.60355497,3084.2,3084.1,0.002]
[1765727365242,8.63159477,3084.2,3084.1,0.002]
[1765727365435,10.73520759,3084.2,3084.1,0.002]
[1765727368443,10.86504209,3084.2,3084.1,0.002]
[1765727370173,10.36844209,3084.2,3084.1,0.002]
[1765727373362,10.88144209,3084.2,3084.1,0.002]
[1765727373560,9.89644209,3084.2,3084.1,0.4766]
[1765727373766,10.40944209,3084.2,3084.1,0.4766]
[1765727375491,10.40944209,3084.2,3084.1,0.002]
[1765727376475,10.90854209,3084.2,3084.1,0.002]
[1765727376681,11.48901738,3084.2,3084.1,0.002]
[1765727376978,11.96491738,3084.2,3084.1,0.002]
[1765727379367,11.96668389,3084.2,3084.1,0.002]
[1765727381071,10.99168389,3084.2,3084.1,0.4766]
[1765727381568,10.99168389,3084.2,3084.1,0.9589]
[1765727381737,10.99168389,3084.2,3084.1,0.4766]
[1765727381938,11.96668389,3084.2,3084.1,0.002]
[1765727382964,12.37218789,3084.2,3084.1,0.002]
[1765727383275,17.15966232,3084.2,3084.1,0.002]
[1765727383669,12.37218789,3084.2,3084.1,0.002]
[1765727384987,17.15966232,3084.2,3084.1,0.002]
[1765727385483,23.64966232,3084.2,3084.1,0.002]
[1765727387076,17.98078389,3084.2,3084.1,0.002]
[1765727387270,18.45668389,3084.2,3084.1,0.002]
[1765727389484,16.96868389,3084.2,3084.1,0.4766]
[1765727389678,17.48168389,3084.2,3084.1,0.4766]
[1765727389976,17.98078389,3084.2,3084.1,0.002]
[1765727390172,22.76825832,3084.2,3084.1,0.002]
[1765727390377,23.24415832,3084.2,3084.1,0.002]
[1765727391344,23.64966232,3084.2,3084.1,0.002]
[1765727392044,23.13666232,3084.2,3084.1,0.002]
[1765727392247,23.64966232,3084.2,3084.1,0.002]
[1765727392669,23.13666232,3084.2,3084.1,0.002]
[1765727392868,23.64966232,3084.2,3084.1,0.002]
[1765727395568,22.25525832,3084.2,3084.1,0.002]
[1765727395852,18.45668389,3084.2,3084.1,0.002]
[1765727396053,23.24415832,3084.2,3084.1,0.002]
[1765727397150,12.60318363,3084.2,3084.1,0.4571]
[1765727397355,12.69420946,3084.2,3084.1,0.4571]
[1765727413597,12.69420946,3084.2,3084.1,0.002]
[1765727413803,17.94261638,3084.2,3084.1,0.002]
[1765727423906,12.18120946,3084.2,3084.1,1.1023]
[1765727424108,12.69420946,3084.2,3084.1,0.6362]
[1765727424999,12.69420946,3084.2,3084.1,0.4571]
[1765727429524,22.7398233,3084.2,3084.1,0.002]
[1765727429824,18.42751638,3084.2,3084.1,0.002]
[1765727430524,23.2142233,3084.2,3084.1,0.002]
[1765727434532,23.21749906,3084.2,3084.1,0.002]
[1765727437542,23.62300306,3084.2,3084.1,0.002]
[1765727437708,23.62300306,3084.2,3084.1,0.00031554]
[1765727440642,23.14860306,3084.2,3084.1,0.00031554]
[1765727440942,12.11373417,3084.2,3084.1,1.11411554]
[1765727441141,11.0466675,3084.2,3084.1,0.66051554]
[1765727441441,11.0476675,3084.2,3084.1,1.11411554]
[1765727441761,0.1308345,3084.2,3084.1,1.11411554]
[1765727441916,0.001,3084.2,3084.1,1.11411554]
[1765727442942,0.09202583,3084.2,3084.1,1.11411554]
[1765727443543,0.60502583,3084.2,3084.1,1.11411554]
[1765727448156,0.514,3084.2,3084.1,1.11411554]
[1765727448466,1.48771141,3084.2,3084.1,1.11411554]
[1765727449231,0.97471141,3084.2,3084.1,1.11411554]
[1765727449431,1.48771141,3084.2,3084.1,1.11411554]
[1765727450256,0.514,3084.2,3084.1,1.11411554]
[1765727450456,1.48762293,3084.2,3084.1,1.11411554]
[1765727450757,0.514,3084.2,3084.1,1.11411554]
[1765727450962,1.48762293,3084.2,3084.1,1.11411554]
[1765727451370,0.97462293,3084.2,3084.1,1.11411554]
[1765727451534,1.48762293,3084.2,3084.1,1.11411554]
[1765727452450,0.514,3084.2,3084.1,1.11411554]
[1765727452769,1.48762293,3084.2,3084.1,1.11411554]
[1765727454154,0.514,3084.2,3084.1,1.11411554]
[1765727455060,1.48762293,3084.2,3084.1,1.11411554]
[1765727455235,0.97462293,3084.2,3084.1,1.11411554]
[1765727460046,0.001,3084.2,3084.1,4.79262657]
[1765727465740,0.001,3084.2,3084.1,35.19813057]
[1765727465940,0.001,3084.2,3084.1,35.90838771]
[1765727466470,0.001,3084.2,3084.1,36.42038771]
[1765727468952,0.001,3084.2,3084.1,41.20655064]
[1765727469156,0.001,3084.2,3084.1,36.42038771]
[1765727469967,0.001,3084.2,3084.1,41.20202609]
[1765727470963,0.001,3084.2,3084.1,45.98366447]
[1765727472976,0.001,3084.3,3084.2,40.98597929]
[1765727473282,0.001,3084.3,3084.2,32.84600521]
[1765727475076,0.001,3084.3,3084.2,36.08833709]
[1765727475950,0.001,3084.5,3084.2,39.33066897]
[1765727476147,0.001,3085.5,3084.6,30.0]
[1765727476451,0.001,3085.5,3085.4,35.44673838]
[1765727476653,0.001,3085.5,3085.4,18.4319124]
[1765727476852,0.001,3085.5,3085.4,12.4659124]
[1765727477161,0.001,3085.5,3085.4,15.70698324]
[1765727477363,0.001,3085.5,3085.4,15.83671668]
[1765727478056,0.001,3085.5,3085.4,16.24222068]
[1765727478253,0.001,3085.5,3085.4,40.01548724]
[1765727478677,0.001,3085.5,3085.4,40.59596253]
[1765727481785,0.001,3085.5,3085.4,31.78396253]
[1765727481988,0.001,3085.5,3085.4,25.60296253]
[1765727482287,0.001,3085.5,3085.4,10.59596253]
[1765727482493,0.001,3085.5,3085.4,29.89396253]
[1765727483594,0.001,3085.5,3085.4,23.09667956]
[1765727484369,0.001,3085.5,3085.4,40.72567956]
[1765727487387,0.001,3085.5,3085.4,10.72567956]
[1765727487689,0.001,3085.5,3085.4,24.45667956]
[1765727488369,0.001,3085.5,3085.4,10.72567956]
[1765727488573,0.001,3085.5,3085.4,40.72567956]
[1765727491186,0.001,3085.5,3085.4,28.59267956]
[1765727491580,0.001,3085.5,3085.4,40.72567956]
[1765727491786,0.001,3085.5,3085.4,40.59596253]
[1765727497684,0.001,3085.5,3085.4,23.39022415]
[1765727497866,0.9624,3085.5,3085.4,3.24107084]
[1765727499698,0.9624,3085.5,3084.9,0.98597929]
[1765727499903,0.4601,3085.0,3084.9,4.22757545]
[1765727500894,0.4991,3085.2,3084.9,7.46917161]
[1765727505505,0.001,3085.5,3084.9,10.71076777]
[1765727505687,0.4991,3085.4,3084.9,10.71076777]
[1765727505886,0.4991,3085.4,3085.1,0.58047529]
[1765727506508,0.001,3085.5,3085.3,0.4719]
[1765727506684,0.001,3085.5,3085.4,0.4719]
[1765727506884,0.001,3085.5,3085.4,3.71297084]
[1765727507088,0.9624,3085.5,3085.4,3.24107084]
[1765727509804,0.9624,3085.5,3085.2,6.48245758]
[1765727510011,0.2477,3085.3,3085.2,3.24117663]
[1765727510513,0.4991,3085.4,3085.2,3.24117663]
[1765727510811,0.4623,3085.3,3085.2,3.24117663]
[1765727512597,0.4623,3085.3,3085.1,10.0]
[1765727512805,0.001,3085.5,3085.1,3.24138601]
[1765727512806,0.7468,3085.2,3085.1,3.24138601]
[1765727513199,0.001,3085.5,3085.1,12.38246416]
[1765727513401,0.001,3085.5,3085.3,4.77949906]
[1765727513999,0.4623,3085.4,3085.1,15.15195017]
[1765727514314,0.4623,3085.4,3085.1,11.91056416]
[1765727515786,0.4623,3085.4,3085.1,12.37906416]
[1765727516118,0.4623,3085.4,3085.2,0.67970686]
[1765727518590,0.4623,3085.4,3085.3,3.24117589]
[1765727519099,0.001,3085.5,3085.3,3.70467589]
[1765727520424,0.001,3085.5,3085.4,0.4635]
[1765727520595,0.001,3085.5,3085.4,3.24107084]
[1765727520791,0.001,3085.5,3085.4,4.35286392]
[1765727522330,0.001,3085.5,3085.4,3.88936392]
[1765727522516,0.4804,3085.5,3085.4,3.88936392]
[1765727523324,0.9401,3085.5,3085.2,3.24119011]
[1765727523531,0.2698,3085.3,3085.2,3.24119011]
[1765727523900,0.7295,3085.3,3084.5,3.75594098]
[1765727524095,0.7295,3085.3,3084.6,6.48382286]
[1765727524096,0.4597,3085.3,3084.6,6.48382286]
[1765727524319,0.4597,3085.2,3084.6,6.48382286]
[1765727524997,0.4597,3085.2,3084.7,4.77949906]
[1765727526427,0.4597,3085.2,3084.8,6.48340248]
[1765727530120,0.001,3085.3,3084.8,6.95030248]
[1765727530321,0.4607,3085.3,3084.8,6.95030248]
[1765727530592,0.4607,3085.3,3084.8,6.48340248]
[1765727531211,0.4794,3084.9,3084.8,3.24170124]
[1765727531614,0.4597,3085.2,3084.8,6.94690248]
[1765727531814,0.4794,3084.9,3084.8,3.24170124]
[1765727532331,0.4597,3085.2,3084.8,6.48340248]
[1765727532827,0.4597,3085.2,3084.6,6.48382286]
[1765727533033,0.4597,3085.2,3084.6,17.06429815]
[1765727536622,0.4794,3084.7,3084.6,19.04738672]
[1765727536825,0.4597,3085.2,3084.6,7.06429815]
[1765727537026,0.4597,3085.2,3084.6,17.52779815]
[1765727537831,0.4597,3085.2,3084.6,24.05029815]
[1765727538035,0.4597,3085.2,3084.6,7.06429815]
[1765727538199,0.4597,3085.2,3084.6,17.06429815]
[1765727539101,0.4794,3084.7,3084.6,3.82238672]
[1765727539300,0.4794,3084.7,3084.5,0.002]
[1765727539506,0.7295,3084.6,3084.5,0.002]
[1765727539740,4.48341143,3084.6,3084.5,0.002]
[1765727539935,5.73388287,3084.6,3084.5,0.002]
[1765727540916,6.40538399,3084.6,3084.5,0.002]
[1765727541322,6.5352067,3084.6,3084.5,0.002]
[1765727542122,11.32118056,3084.6,3084.5,0.002]
[1765727545250,6.0232067,3084.6,3084.5,0.002]
[1765727545452,6.40538399,3084.6,3084.5,0.002]
[1765727548657,5.89338399,3084.6,3084.5,0.002]
[1765727548856,6.40538399,3084.6,3084.5,0.002]
[1765727549757,6.40638399,3084.6,3084.5,0.002]
[1765727553730,0.001,3084.6,3084.5,0.5012]
[1765727554460,0.458,3084.6,3084.5,0.002]
[1765727554639,0.9525,3084.6,3084.5,0.002]
[1765727557655,4.28543726,3084.6,3084.5,0.002]
[1765727559168,4.32596115,3084.6,3084.5,0.002]
[1765727560261,6.5262929,3084.6,3084.5,0.002]
[1765727560463,6.48576901,3084.6,3084.5,0.002]
[1765727561663,6.99776901,3084.6,3084.5,0.002]
[1765727563461,11.78400232,3084.6,3084.5,0.002]
[1765727567853,6.99776901,3084.6,3084.5,0.002]
[1765727568046,11.78400232,3084.6,3084.5,0.002]
[1765727574270,11.27200232,3084.6,3084.5,0.002]
[1765727574669,11.78400232,3084.6,3084.5,0.002]
[1765727577978,12.27270232,3084.6,3084.5,0.002]
[1765727578280,12.27378258,3084.6,3084.5,0.002]
[1765727578978,11.76178258,3084.6,3084.5,0.002]
[1765727579181,12.27378258,3084.6,3084.5,0.002]
[1765727581876,18.76378258,3084.6,3084.5,0.002]
[1765727595586,18.25178258,3084.6,3084.5,0.002]
[1765727595777,18.76378258,3084.6,3084.5,0.002]
[1765727596359,17.75728258,3084.6,3084.5,0.002]
[1765727596560,18.26928258,3084.6,3084.5,0.002]
[1765727600999,12.51296901,3084.6,3084.5,0.4558]
[1765727601166,11.40511255,3084.6,3084.5,0.9499]
[1765727601363,11.40511255,3084.6,3084.5,0.4558]
[1765727601977,16.19242612,3084.6,3084.5,0.002]
[1765727602178,16.19242612,3084.6,3084.5,0.4558]
[1765727603284,16.68902612,3084.6,3084.5,0.002]
[1765727604091,6.8001382,3084.6,3084.5,0.4558]
[1765727611477,0.001,3084.6,3084.5,0.9191]
[1765727612980,3.24291143,3084.6,3084.5,0.9191]
[1765727613194,3.24291143,3084.6,3084.5,0.4558]
[1765727613594,4.78831357,3084.6,3084.5,0.4558]
[1765727613795,5.3331394,3084.6,3084.5,0.002]
[1765727614001,6.52249152,3084.6,3084.5,0.002]
[1765727614779,7.00489152,3084.6,3084.5,0.002]
[1765727615600,10.24680295,3084.6,3084.5,0.002]
[1765727615805,9.76440295,3084.6,3084.5,0.002]
[1765727616377,4.52470547,3084.6,3084.5,0.483]
[1765727616581,0.09202583,3084.6,3084.5,0.483]
[1765727616900,3.84593726,3084.6,3084.5,0.9463]
[1765727617278,3.84593726,3084.6,3084.5,0.483]
[1765727619004,0.60402583,3084.6,3084.5,0.9463]
[1765727619701,0.513,3084.6,3084.5,0.9463]
[1765727620491,0.513,3084.6,3084.5,0.483]
[1765727620692,0.60402583,3084.6,3084.5,0.483]
[1765727621511,3.84593726,3084.6,3084.5,0.483]
[1765727622615,3.33393726,3084.6,3084.5,0.483]
[1765727622819,3.84593726,3084.6,3084.5,0.483]
[1765727625028,3.33393726,3084.6,3084.5,0.483]
[1765727625231,3.84593726,3084.6,3084.5,0.483]
[1765727627115,0.513,3084.6,3084.5,0.9463]
[1765727628008,0.513,3084.6,3084.5,0.483]
[1765727628009,0.001,3084.6,3084.5,0.483]
[1765727628209,0.513,3084.6,3084.5,0.9463]
[1765727628417,3.75491143,3084.6,3084.5,0.483]
[1765727630102,0.513,3084.6,3084.5,0.483]
[1765727630293,3.75491143,3084.6,3084.5,0.9463]
[1765727630499,3.75491143,3084.6,3084.5,0.483]
[1765727631514,0.513,3084.6,3084.5,0.9463]
[1765727632411,3.75491143,3084.6,3084.5,0.9463]
[1765727632715,3.24291143,3084.6,3084.5,0.9463]
[1765727632919,3.75491143,3084.6,3084.5,0.9463]
[1765727633901,0.513,3084.6,3084.5,0.9463]
[1765727635104,3.75491143,3084.6,3084.5,0.9463]
[1765727635714,3.75491143,3084.6,3084.5,0.483]
[1765727641043,0.513,3084.6,3084.5,0.483]
[1765727641211,3.75491143,3084.6,3084.5,0.483]
[1765727642338,0.513,3084.6,3084.5,0.483]
[1765727642538,0.001,3084.6,3084.5,0.9669]
[1765727642726,0.513,3084.6,3084.5,0.9669]
[1765727643236,0.513,3084.6,3084.5,0.483]
[1765727644463,3.75491143,3084.6,3084.5,0.483]
[1765727649662,0.513,3084.6,3084.5,0.483]
[1765727650668,0.513,3084.6,3084.5,0.9669]
[1765727651555,0.001,3084.6,3084.5,0.9669]
[1765727651762,0.513,3084.6,3084.5,0.9669]
[1765727652758,0.001,3084.6,3084.5,0.9669]
[1765727652963,0.513,3084.6,3084.5,0.9669]
[1765727655952,9.49762732,3084.6,3084.5,0.002]
[1765727656276,10.45649263,3084.6,3084.5,0.002]
[1765727659582,5.67147674,3084.6,3084.5,0.002]
[1765727659760,10.45649263,3084.6,3084.5,0.002]
[1765727662651,11.16679189,3084.6,3084.5,0.002]
[1765727663476,10.65479189,3084.6,3084.5,0.002]
[1765727663665,11.16679189,3084.6,3084.5,0.002]
[1765727664470,16.35731178,3084.6,3084.5,0.002]
[1765727664672,11.06029589,3084.6,3084.5,0.002]
[1765727664878,10.65479189,3084.6,3084.5,0.002]
[1765727665169,11.16679189,3084.6,3084.5,0.002]
[1765727666964,10.65479189,3084.6,3084.5,0.002]
[1765727667269,11.16679189,3084.6,3084.5,0.002]
[1765727669877,10.65479189,3084.6,3084.5,0.002]
[1765727670064,11.16679189,3084.6,3084.5,0.002]
[1765727673987,17.65679189,3084.6,3084.5,0.002]
[1765727676092,16.69909189,3084.6,3084.5,0.4685]
[1765727676861,11.914076,3084.6,3084.5,0.4685]
[1765727677275,16.69909189,3084.6,3084.5,0.4685]
[1765727677698,16.69909189,3084.6,3084.5,0.002]
[1765727680183,17.03386792,3084.6,3084.5,0.002]
[1765727680578,17.53016792,3084.6,3084.5,0.002]
[1765727683768,17.03386792,3084.6,3084.5,0.002]
[1765727684096,16.56926792,3084.6,3084.5,0.4685]
[1765727684300,15.61040261,3084.6,3084.5,0.4685]
[1765727685286,10.82538672,3084.6,3084.5,0.4685]
[1765727685487,10.82538672,3084.6,3084.5,0.9409]
[1765727686194,10.31338672,3084.6,3084.5,0.4685]
[1765727686396,10.82538672,3084.6,3084.5,0.9409]
[1765727689103,10.24491143,3084.6,3084.5,0.9409]
[1765727690081,9.73291143,3084.6,3084.5,0.9409]
[1765727690408,10.24491143,3084.6,3084.5,0.9409]
[1765727691795,3.75491143,3084.6,3084.5,0.9409]
[1765727695506,3.24291143,3084.6,3084.5,0.9409]
[1765727695670,3.75491143,3084.6,3084.5,0.9409]
[1765727697482,3.24291143,3084.6,3084.5,0.9409]
[1765727697698,3.75491143,3084.6,3084.5,0.9409]
[1765727700214,3.24291143,3084.6,3084.5,0.9409]
[1765727700387,3.75491143,3084.6,3084.5,0.9409]
[1765727700594,3.24291143,3084.6,3084.5,0.9409]
[1765727700994,3.75491143,3084.6,3084.5,0.9409]
[1765727701811,3.75491143,3084.6,3084.5,0.4685]
[1765727701980,4.99344583,3084.6,3084.5,0.002]
[1765727703213,4.23771143,3084.6,3084.5,0.002]
[1765727703614,3.75491143,3084.6,3084.5,0.9617]
[1765727703801,3.75491143,3084.6,3084.5,0.4739]
[1765727705711,3.75491143,3084.6,3084.5,0.002]
[1765727706824,4.23771143,3084.6,3084.5,0.002]
[1765727706991,4.70731143,3084.6,3084.5,0.002]
[1765727707322,4.23771143,3084.6,3084.5,0.002]
[1765727708717,3.72571143,3084.6,3084.5,0.002]
[1765727708909,4.23771143,3084.6,3084.5,0.002]
[1765727713725,3.75491143,3084.6,3084.5,0.4739]
[1765727714605,3.75491143,3084.6,3084.5,0.002]
[1765727715222,3.24291143,3084.6,3084.5,0.4739]
[1765727715421,3.75491143,3084.6,3084.5,0.9617]
[1765727715920,3.75491143,3084.6,3084.5,0.4739]
[1765727718906,3.84593726,3084.6,3084.5,0.4739]
[1765727720838,3.84593726,3084.6,3084.5,0.9617]
[1765727721837,3.84593726,3084.6,3084.5,0.4739]
[1765727723824,4.79833726,3084.6,3084.5,0.002]
[1765727724014,5.65113162,3084.6,3084.5,0.002]
[1765727725733,5.69165551,3084.6,3084.5,0.002]
[1765727726043,6.35887105,3084.6,3084.5,0.002]
[1765727726244,6.31834716,3084.6,3084.5,0.002]
[1765727730447,5.80634716,3084.6,3084.5,0.002]
[1765727730651,6.31834716,3084.6,3084.5,0.002]
[1765727736522,1.27124137,3084.6,3084.5,0.9626]
[1765727736858,0.513,3084.6,3084.5,0.9626]
[1765727744236,0.001,3084.6,3084.5,0.9626]
[1765727744437,0.513,3084.6,3084.5,0.9626]
[1765727755565,0.001,3084.6,3084.5,0.9626]
[1765727755771,0.513,3084.6,3084.5,0.9626]
[1765727755972,0.513,3084.6,3084.5,0.4868]
[1765727756173,1.67214025,3084.6,3084.5,0.002]
[1765727756351,6.91782928,3084.6,3084.5,0.002]
[1765727756966,7.04938648,3084.6,3084.5,0.002]
[1765727757660,5.0438647,3084.6,3084.5,0.002]
[1765727759379,4.5318647,3084.6,3084.5,0.002]
[1765727759574,4.91405168,3084.6,3084.5,0.002]
[1765727759870,5.37595168,3084.6,3084.5,0.002]
[1765727760070,10.16148489,3084.6,3084.5,0.002]
[1765727760568,10.29130254,3084.6,3084.5,0.002]
[1765727764970,5.50576933,3084.6,3084.5,0.002]
[1765727765171,10.29130254,3084.6,3084.5,0.002]
[1765727771877,10.29130254,3084.6,3084.5,0.4998]
[1765727771878,0.13081765,3084.6,3084.5,0.4998]
[1765727772184,0.513,3084.6,3084.5,0.994]
[1765727772677,0.001,3084.6,3084.5,0.994]
[1765727772974,0.513,3084.6,3084.5,0.994]
[1765727779715,4.21441143,3084.6,3084.5,0.002]
[1765727781712,8.99994464,3084.6,3084.5,0.002]
[1765727781890,11.01929391,3084.6,3084.5,0.002]
[1765727782087,6.2337607,3084.6,3084.5,0.002]
[1765727782409,4.67631143,3084.6,3084.5,0.002]
[1765727784279,4.21441143,3084.6,3084.5,0.002]
[1765727784677,0.513,3084.6,3084.5,0.994]
[1765727784902,0.001,3084.6,3084.5,0.994]
[1765727785214,0.513,3084.6,3084.5,0.994]
[1765727788584,0.513,3084.6,3084.5,0.9774]
[1765727789680,0.001,3084.6,3084.5,0.9774]
[1765727789883,0.001,3084.6,3084.5,1.87789967]
[1765727790916,0.001,3084.6,3084.5,5.1199162]
[1765727794426,0.001,3084.6,3084.5,1.87789967]
[1765727794728,0.001,3084.6,3084.5,0.9774]
[1765727795105,0.001,3084.6,3084.5,4.21941653]
[1765727798129,0.513,3085.5,3085.2,0.634]
[1765727798343,0.513,3085.5,3085.4,0.4509]
[1765727798820,0.001,3085.5,3085.4,0.4509]
[1765727799015,0.513,3085.5,3085.4,0.4509]
[1765727801531,0.001,3085.5,3085.4,0.4509]
[1765727803142,3.2419658,3085.5,3085.2,0.6607]
[1765727803538,0.001,3085.5,3085.4,0.4509]
[1765727805639,0.001,3085.5,3085.2,0.1831]
[1765727806547,0.001,3085.5,3085.2,0.6607]
[1765727807116,0.513,3085.5,3085.4,0.4509]
[1765727808929,3.7539658,3085.5,3085.4,0.4509]
[1765727809136,0.513,3085.5,3085.4,0.4509]
[1765727809621,0.001,3085.5,3085.4,0.4509]
[1765727811346,3.2419658,3085.5,3085.4,0.4509]
[1765727812316,3.7310658,3085.5,3084.8,3.24165363]
[1765727812653,0.4636,3085.4,3084.7,3.24173666]
[1765727812854,0.4636,3085.4,3084.8,0.4776]
[1765727813455,3.24114877,3085.4,3084.8,0.4776]
[1765727813621,0.512,3085.4,3085.3,0.4509]
[1765727815635,3.75307084,3085.4,3085.1,0.6607]
[1765727816031,3.75307084,3085.4,3084.9,0.4881]
[1765727816233,4.20687084,3085.4,3084.9,1.04417834]
[1765727816951,0.4967,3085.0,3084.5,0.002]
[1765727817122,0.4943,3084.6,3084.5,0.002]
[1765727817557,4.19001143,3084.6,3084.5,0.002]
[1765727821954,0.9481,3084.6,3084.5,0.002]
[1765727822141,4.19001143,3084.6,3084.5,0.002]
[1765727823058,0.9481,3084.6,3084.5,0.002]
[1765727826043,4.19001143,3084.6,3084.5,0.002]
[1765727826558,0.9481,3084.6,3084.5,0.002]
[1765727828360,4.19001143,3084.6,3084.5,0.002]
[1765727828550,0.9481,3084.6,3084.5,0.002]
[1765727828950,4.19001143,3084.6,3084.5,0.002]
[1765727829153,0.9481,3084.6,3084.5,0.002]
[1765727829364,4.19001143,3084.6,3084.5,0.002]
[1765727830460,0.9481,3084.6,3084.5,0.002]
[1765727831775,4.19001143,3084.6,3084.5,0.002]
[1765727832571,0.9481,3084.6,3084.5,0.002]
[1765727833472,4.19001143,3084.6,3084.5,0.002]
[1765727834150,0.9481,3084.6,3084.5,0.002]
[1765727834344,0.4943,3084.6,3084.5,0.002]
[1765727835350,1.0063,3084.6,3084.5,0.002]
[1765727836075,4.24821143,3084.6,3084.5,0.002]
[1765727836889,1.0063,3084.6,3084.5,0.002]
[1765727837781,4.24821143,3084.6,3084.5,0.002]
[1765727838288,1.0063,3084.6,3084.5,0.002]
[1765727839986,0.512,3084.6,3084.5,0.5004]
[1765727841287,3.73184215,3084.8,3084.5,0.5004]
[1765727841591,9.82328069,3085.3,3084.7,3.74014768]
[1765727841899,9.82328069,3085.3,3085.2,0.6815]
[1765727841900,0.001,3085.3,3085.2,0.6815]
[1765727842252,0.001,3085.3,3085.2,1.1696]
[1765727843895,0.001,3085.3,3085.2,4.41088095]
[1765727844060,0.001,3085.3,3085.2,5.17610951]
[1765727845591,0.001,3085.3,3085.2,5.7565848]
[1765727845983,0.001,3085.3,3085.2,10.54139213]
[1765727846185,0.001,3085.3,3085.2,11.45889613]
[1765727846497,0.001,3085.3,3085.2,11.588622]
[1765727848398,0.001,3085.3,3085.2,41.588622]
[1765727850498,0.001,3085.3,3085.2,23.819622]
[1765727851400,0.001,3085.3,3085.2,41.588622]
[1765727853800,5.65500845,3086.9,3085.4,30.0]
[1765727854200,5.65500845,3086.9,3085.5,0.483]
[1765727854373,3.24008757,3086.4,3085.6,3.24086077]
[1765727854902,3.24008757,3086.4,3085.7,0.483]
[1765727855808,0.4745,3086.3,3085.7,0.483]
[1765727855979,0.4745,3086.3,3085.7,1.17947666]
[1765727856704,3.71466118,3086.3,3085.7,4.42020489]
[1765727857000,3.71466118,3086.3,3085.7,3.93720489]
[1765727857216,3.5269183,3086.5,3085.8,0.483]
[1765727857397,0.001,3086.5,3086.2,0.477]
[1765727857804,0.001,3086.5,3086.2,0.96]
[1765727858305,0.4655,3086.3,3085.8,0.1996]
[1765727858600,0.0026,3086.2,3085.9,3.87198599]
[1765727859103,0.0026,3086.2,3085.9,0.63152328]
[1765727859310,0.4771,3086.2,3085.8,3.44021892]
[1765727859474,0.4771,3086.2,3085.8,0.6826]
[1765727860186,0.4771,3086.2,3085.6,0.511]
[1765727860187,0.0026,3086.2,3085.6,0.511]
[1765727860375,0.0026,3086.2,3085.7,3.24073953]
[1765727860570,0.4771,3086.2,3085.7,3.24073953]
[1765727860802,0.4771,3086.2,3085.7,3.72373953]
[1765727861311,0.4771,3086.2,3085.7,4.42020844]
[1765727862106,0.4771,3086.2,3085.7,7.66096418]
[1765727862299,0.4771,3086.2,3085.7,3.93720844]
[1765727862501,0.4771,3086.2,3085.8,0.483]
[1765727863210,0.4771,3086.2,3085.7,3.24073953]
[1765727863506,0.4771,3086.2,3085.7,3.72373953]
[1765727863716,0.4771,3086.2,3085.8,3.24064741]
[1765727864013,0.4771,3086.2,3085.8,3.24063939]
[1765727864211,0.4781,3086.2,3085.8,3.93708639]
[1765727864793,0.4781,3086.2,3085.8,0.696447]
[1765727865194,0.4781,3086.2,3085.8,3.93709257]
[1765727865604,0.001,3086.2,3086.1,0.6766]
[1765727865806,0.001,3086.2,3086.1,1.1596]
[1765727866802,0.001,3086.2,3086.1,4.83994031]
[1765727869509,0.001,3086.2,3086.1,9.61685327]
[1765727874102,0.001,3086.2,3086.1,4.83994031]
[1765727874589,0.001,3086.2,3086.1,1.59960462]
[1765727875311,0.001,3086.2,3086.1,4.83994031]
[1765727879870,0.001,3086.2,3086.1,3.24033569]
[1765727879871,0.2727,3086.2,3086.1,3.24033569]
[1765727879995,0.2727,3086.2,3086.0,3.37206706]
[1765727880522,0.0182,3086.1,3086.0,0.13170189]